fUST/lending_fUST_20250812
["ID","MTS","AMOUNT","RATE_DAILY","PERIOD"]
[378718735,1754989856566,-3457.047158,0.00019191,2]
[378718737,1754989856575,-3087.66,0.00019191,2]
[378718738,1754989856585,-461.45377537,0.00019191,2]
[378718740,1754989856595,-460.0,0.00019191,2]
[378718742,1754989856604,-3102.53,0.00019191,2]
[378718743,1754989856614,-460.0,0.00019191,2]
[378718745,1754989856623,-151.0,0.00019191,2]
[378718746,1754989856633,-460.0,0.00019192,2]
[378718748,1754989856642,-460.0,0.00019192,2]
[378718750,1754989856652,-460.0,0.00019192,2]
[378718751,1754989856662,-1285.31,0.00019192,2]
[378718753,1754989856671,-1061.43,0.00019192,2]
[378718755,1754989856682,-660.19,0.00019192,2]
[378718757,1754989856693,-703.67,0.00019192,2]
[378718759,1754989856703,-1571.34,0.00019192,2]
[378718761,1754989856712,-479.36,0.00019192,2]
[378718762,1754989856722,-460.0,0.00019192,2]
[378718764,1754989856732,-460.0,0.00019192,2]
[378718765,1754989856741,-460.0,0.00019192,2]
[378718766,1754989856751,-961.98,0.00019192,2]
[378718767,1754989856763,-462.62465038,0.00019192,2]
[378718768,1754989856774,-460.0,0.00019192,2]
[378718769,1754989856783,-460.0,0.00019192,2]
[378718770,1754989856793,-596.7,0.00019192,2]
[378718771,1754989856802,-548.06,0.00019192,2]
[378718772,1754989856812,-851.89,0.00019192,2]
[378718773,1754989856821,-460.0,0.00019192,2]
[378718774,1754989856831,-460.0,0.00019192,2]
[378718775,1754989856841,-460.0,0.00019192,2]
[378718776,1754989856851,-703.0,0.00019192,2]
[378718777,1754989856860,-460.0,0.00019192,2]
[378718778,1754989856869,-460.0,0.00019192,2]
[378718779,1754989856880,-534.6,0.00019192,2]
[378718780,1754989856889,-1574.67,0.00019192,2]
[378718781,1754989856899,-460.0,0.00019192,2]
[378718783,1754989856909,-464.51217796,0.00019192,2]
[378718784,1754989856918,-651.47,0.00019192,2]
[378718786,1754989856928,-460.0,0.00019192,2]
[378718787,1754989856938,-460.0,0.00019192,2]
[378718789,1754989856947,-461.18252454,0.00019192,2]
[378718791,1754989856957,-460.0,0.00019192,2]
[378718793,1754989856966,-466.75475142,0.00019192,2]
[378718795,1754989856976,-460.0,0.00019192,2]
[378718797,1754989856985,-2172.38,0.00019192,2]
[378718799,1754989856995,-460.0,0.00019192,2]
[378718801,1754989857005,-164.604042,0.00019192,2]
[378718803,1754989857015,-460.0,0.00019192,2]
[378718805,1754989857026,-460.0,0.00019192,2]
[378718807,1754989857036,-460.0,0.00019192,2]
[378718809,1754989857045,-460.0,0.00019192,2]
[378718811,1754989857054,-460.0,0.00019192,2]
[378718813,1754989857063,-460.0,0.00019192,2]
[378718815,1754989857073,-460.0,0.00019192,2]
[378718817,1754989857082,-460.0,0.00019192,2]
[378718819,1754989857092,-460.0,0.00019192,2]
[378718821,1754989857101,-460.0,0.00019192,2]
[378718823,1754989857111,-460.0,0.00019192,2]
[378718825,1754989857120,-460.0,0.00019192,2]
[378718827,1754989857130,-460.0,0.00019192,2]
[378718829,1754989857139,-460.0,0.00019194,2]
[378718831,1754989857149,-460.0,0.00019194,2]
[378718833,1754989857159,-460.0,0.00019194,2]
[378718835,1754989857168,-460.0,0.00019194,2]
[378718837,1754989857177,-471.51,0.00019194,2]
[378718839,1754989857186,-460.0,0.00019194,2]
[378718841,1754989857196,-255.15323635,0.00019194,2]
[378718843,1754989857205,-460.0,0.00019194,2]
[378718845,1754989857214,-460.0,0.00019194,2]
[378718847,1754989857223,-460.0,0.00019194,2]
[378718849,1754989857234,-519.91,0.00019194,2]
[378718851,1754989857243,-460.0,0.00019194,2]
[378718853,1754989857252,-341.32861158,0.00019194,2]
[378718856,1754989857266,-536.22,0.00019194,2]
[378718858,1754989857282,-460.0,0.00019194,2]
[378718861,1754989857297,-460.0,0.00019194,2]
[378718863,1754989857310,-460.0,0.00019194,2]
[378718866,1754989857322,-460.0,0.00019194,2]
[378718868,1754989857336,-465.8121813,0.00019194,2]
[378718871,1754989857349,-460.0,0.00019194,2]
[378718873,1754989857367,-460.0,0.00019194,2]
[378718875,1754989857388,-460.0,0.00019194,2]
[378718877,1754989857401,-460.0,0.00019194,2]
[378718880,1754989857415,-460.0,0.00019194,2]
[378718882,1754989857428,-460.0,0.00019194,2]
[378718885,1754989857440,-460.0,0.00019194,2]
[378718887,1754989857453,-460.0,0.00019194,2]
[378718890,1754989857465,-460.0,0.00019194,2]
[378718892,1754989857480,-460.0,0.00019194,2]
[378718894,1754989857491,-463.11410216,0.00019194,2]
[378718897,1754989857504,-500.0,0.00019194,2]
[378718899,1754989857514,-460.0,0.00019194,2]
[378718901,1754989857528,-460.0,0.00019194,2]
[378718904,1754989857540,-460.0,0.00019194,2]
[378718906,1754989857553,-460.0,0.00019194,2]
[378718908,1754989857567,-460.0,0.00019194,2]
[378718911,1754989857579,-460.0,0.00019194,2]
[378718913,1754989857595,-460.0,0.00019194,2]
[378718916,1754989857609,-460.0,0.00019194,2]
[378718918,1754989857622,-461.13060928,0.00019194,2]
[378718921,1754989857633,-460.0,0.00019194,2]
[378718923,1754989857643,-460.0,0.00019194,2]
[378718925,1754989857654,-460.0,0.00019194,2]
[378718927,1754989857666,-460.0,0.00019194,2]
[378718930,1754989857683,-460.0,0.00019194,2]
[378718932,1754989857698,-460.0,0.00019194,2]
[378718934,1754989857709,-550.0,0.00019194,2]
[378718936,1754989857721,-460.0,0.00019194,2]
[378718939,1754989857735,-470.06215755,0.00019194,2]
[378718941,1754989857746,-460.0,0.00019194,2]
[378718943,1754989857757,-515.1,0.00019194,2]
[378718945,1754989857769,-460.0,0.00019194,2]
[378718947,1754989857781,-1117.38,0.00019194,2]
[378718949,1754989857793,-460.0,0.00019194,2]
[378718952,1754989857806,-460.0,0.00019194,2]
[378718954,1754989857825,-487.59517202,0.00019194,2]
[378718956,1754989857838,-460.0,0.00019194,2]
[378718958,1754989857850,-263.34918321,0.00019194,2]
[378718960,1754989857862,-506.97043766,0.00019194,2]
[378718963,1754989857874,-460.0,0.00019194,2]
[378718965,1754989857885,-460.0,0.00019194,2]
[378718967,1754989857897,-460.0,0.00019194,2]
[378718970,1754989857908,-460.0,0.00019194,2]
[378718972,1754989857920,-837.98,0.00019194,2]
[378718974,1754989857931,-460.0,0.00019194,2]
[378718977,1754989857944,-460.0,0.00019194,2]
[378718979,1754989857954,-460.0,0.00019194,2]
[378718981,1754989857966,-158.47119424,0.00019194,2]
[378718983,1754989857977,-460.0,0.00019194,2]
[378718985,1754989857988,-462.95217488,0.00019194,2]
[378718988,1754989857999,-460.0,0.00019194,2]
[378718990,1754989858011,-460.0,0.00019194,2]
[378718992,1754989858023,-456.6775147,0.00019194,2]
[378718995,1754989858035,-3457.047158,0.00019194,2]
[378718997,1754989858047,-3457.047158,0.00019194,2]
[378718999,1754989858058,-151.0,0.00019194,2]
[378719001,1754989858069,-151.0,0.00019195,2]
[378719004,1754989858081,-486.05779555,0.00019195,2]
[378719006,1754989858092,-269.42,0.000192,2]
[378719008,1754989858104,-151.0,0.000192,2]
[378719010,1754989858115,-151.0,0.00019205,2]
[378719012,1754989858126,-500.0,0.00019205,2]
[378719015,1754989858138,-151.0,0.00019205,2]
[378719017,1754989858149,-500.0,0.00019205,2]
[378719018,1754989858160,-151.0,0.00019205,2]
[378719019,1754989858171,-411.30382173,0.00019205,2]
[378719020,1754989858182,-500.0,0.00019205,2]
[378719021,1754989858194,-3056.0,0.00019205,2]
[378719022,1754989858206,-151.0,0.00019205,2]
[378719023,1754989858217,-151.0,0.00019205,2]
[378719024,1754989858228,-500.0,0.00019205,2]
[378719025,1754989858240,-205.2330894,0.00019205,2]
[378719026,1754989858255,-500.0,0.00019205,2]
[378719027,1754989858267,-262.92559148,0.00019205,2]
[378719028,1754989858278,-151.0,0.00019205,2]
[378719029,1754989858289,-151.0,0.00019205,2]
[378719030,1754989858301,-500.0,0.00019205,2]
[378719031,1754989858312,-151.0,0.00019205,2]
[378719032,1754989858323,-283.66218537,0.00019205,2]
[378719033,1754989858335,-151.0,0.00019205,2]
[378719034,1754989858347,-271.39691412,0.00019205,2]
[378719035,1754989858358,-500.0,0.00019205,2]
[378719037,1754989858370,-500.0,0.00019205,2]
[378719039,1754989858382,-151.00555236,0.00019205,2]
[378719042,1754989858396,-1061.06729624,0.00019221,2]
[378719044,1754989858407,-704.73304251,0.00019221,2]
[378719046,1754989858419,-1004.12150487,0.00019221,2]
[378719048,1754989858431,-509.4840268,0.00019221,2]
[378719051,1754989858442,-501.26138303,0.00019221,2]
[378719053,1754989858453,-1000.0,0.00019221,2]
[378719055,1754989858465,-1000.0,0.00019221,2]
[378719057,1754989858477,-503.63314186,0.00019221,2]
[378719060,1754989858487,-501.30339639,0.00019221,2]
[378719062,1754989858498,-741.27761623,0.00019221,2]
[378719064,1754989858509,-1000.0,0.00019221,2]
[378719066,1754989858521,-1000.0,0.00019221,2]
[378719068,1754989858532,-1000.0,0.00019221,2]
[378719070,1754989858543,-754.49316604,0.00019221,2]
[378719073,1754989858555,-1000.0,0.00019221,2]
[378719075,1754989858567,-503.90787643,0.00019221,2]
[378719077,1754989858578,-1005.16945793,0.00019221,2]
[378719079,1754989858589,-500.0,0.00019221,2]
[378719082,1754989858601,-1000.0,0.00019221,2]
[378719084,1754989858613,-1000.0,0.00019221,2]
[378719086,1754989858624,-1000.93742005,0.00019221,2]
[378719088,1754989858635,-1000.0,0.00019221,2]
[378719090,1754989858647,-500.251964,0.00019221,2]
[378719093,1754989858658,-1000.66368983,0.00019221,2]
[378719095,1754989858669,-501.01799849,0.00019221,2]
[378719097,1754989858683,-497.95273861,0.00019221,2]
[378719099,1754989858696,-500.43418225,0.00019221,2]
[378719102,1754989858708,-1000.0,0.00019221,2]
[378719104,1754989858719,-502.02202427,0.00019221,2]
[378719106,1754989858732,-1000.0,0.00019221,2]
[378719109,1754989858746,-1000.0,0.00019221,2]
[378719111,1754989858758,-501.22025665,0.00019221,2]
[378719113,1754989858769,-500.5033971,0.00019221,2]
[378719115,1754989858780,-1000.0,0.00019221,2]
[378719117,1754989858792,-1000.0,0.00019221,2]
[378719120,1754989858804,-1000.0,0.00019221,2]
[378719122,1754989858816,-500.23855586,0.00019221,2]
[378719124,1754989858827,-258.22936594,0.00019233,2]
[378719126,1754989858838,-207.0,0.00019261,2]
[378719128,1754989858850,-353.7,0.00019262,2]
[378719130,1754989858861,-3000.0,0.00019281,2]
[378719133,1754989858872,-151.0,0.000193,2]
[378719135,1754989858884,-151.0,0.000193,2]
[378719137,1754989858896,-207.0,0.00019328,2]
[378719139,1754989858908,-200.56360519,0.00019328,2]
[378719141,1754989858919,-261.153731,0.00019329,2]
[378719144,1754989858931,-3457.047158,0.00019329,2]
[378719146,1754989858942,-3457.047158,0.00019329,2]
[378719148,1754989858957,-151.0,0.00019329,2]
[378719151,1754989858968,-70558.33775115,0.00019329,2]
[378719153,1754989858980,-500.0,0.0001935,5]
[378719155,1754989858991,-500.0,0.00019356,2]
[378719157,1754989859002,-511.44,0.00019364,2]
[378719159,1754989859014,-460.0,0.00019364,2]
[378719162,1754989859028,-778.07,0.00019364,2]
[378719164,1754989859039,-460.0,0.00019364,2]
[378719166,1754989859051,-695.2,0.00019364,2]
[378719168,1754989859063,-3994.01,0.00019364,2]
[378719171,1754989859075,-460.0,0.00019364,2]
[378719173,1754989859086,-607.67,0.00019364,2]
[378719175,1754989859096,-2824.63,0.00019364,2]
[378719177,1754989859105,-496.78,0.00019364,2]
[378719203,1754989859335,-850.45,0.00019364,2]
[378719206,1754989859359,-2881.31,0.00019365,2]
[378719208,1754989859369,-624.47,0.00019365,2]
[378719210,1754989859378,-580.14,0.00019365,2]
[378719212,1754989859387,-1844.43,0.00019365,2]
[378719214,1754989859397,-3780.92,0.00019365,2]
[378719216,1754989859406,-852.8,0.00019365,2]
[378719218,1754989859415,-460.0,0.00019365,2]
[378719220,1754989859424,-1219.8,0.00019365,2]
[378719222,1754989859433,-801.24,0.00019365,2]
[378719223,1754989859443,-1272.56,0.00019365,2]
[378719224,1754989859451,-832.96,0.00019365,2]
[378719225,1754989859460,-460.0,0.00019365,2]
[378719226,1754989859467,-1059.69,0.00019365,2]
[378719227,1754989859475,-1297.9,0.00019365,2]
[378719228,1754989859484,-1696.21,0.00019365,2]
[378719229,1754989859492,-460.0,0.00019365,2]
[378719230,1754989859499,-460.0,0.00019367,2]
[378719231,1754989859508,-460.0,0.00019367,2]
[378719232,1754989859519,-535.01,0.00019367,2]
[378719233,1754989859529,-460.0,0.00019367,2]
[378719234,1754989859539,-460.0,0.00019367,2]
[378719235,1754989859548,-856.74,0.00019367,2]
[378719237,1754989859558,-601.61,0.00019367,2]
[378719238,1754989859566,-622.63,0.00019367,2]
[378719240,1754989859576,-460.0,0.00019367,2]
[378719242,1754989859585,-460.0,0.00019367,2]
[378719244,1754989859595,-460.0,0.00019367,2]
[378719246,1754989859604,-574.83427458,0.00019367,2]
[378719248,1754989859614,-460.0,0.00019367,2]
[378719250,1754989859623,-460.0,0.00019367,2]
[378719252,1754989859632,-582.68,0.00019367,2]
[378719254,1754989859642,-460.0,0.00019367,2]
[378719256,1754989859651,-460.0,0.00019367,2]
[378719258,1754989859661,-460.0,0.00019367,2]
[378719260,1754989859670,-519.88,0.00019367,2]
[378719262,1754989859683,-913.33,0.00019367,2]
[378719264,1754989859694,-689.99,0.00019367,2]
[378719266,1754989859703,-460.0,0.00019367,2]
[378719268,1754989859713,-460.0,0.00019367,2]
[378719270,1754989859723,-460.0,0.00019367,2]
[378719272,1754989859732,-460.0,0.00019367,2]
[378719274,1754989859742,-731.05,0.00019367,2]
[378719276,1754989859751,-460.0,0.00019367,2]
[378719278,1754989859761,-460.0,0.00019367,2]
[378719280,1754989859771,-460.0,0.00019367,2]
[378719282,1754989859780,-839.52,0.00019367,2]
[378719284,1754989859789,-980.86,0.00019367,2]
[378719286,1754989859799,-816.4,0.00019367,2]
[378719288,1754989859808,-460.0,0.00019367,2]
[378719290,1754989859817,-575.45,0.00019367,2]
[378719292,1754989859827,-460.0,0.00019367,2]
[378719294,1754989859837,-310.0694154,0.00019367,2]
[378719296,1754989859847,-866.6,0.00019367,2]
[378719298,1754989859857,-460.0,0.00019367,2]
[378719300,1754989859866,-460.0,0.00019367,2]
[378719302,1754989859875,-638.72,0.00019367,2]
[378719304,1754989859884,-460.0,0.00019367,2]
[378719306,1754989859894,-460.0,0.00019367,2]
[378719308,1754989859903,-460.0,0.00019367,2]
[378719310,1754989859913,-1440.43,0.00019367,2]
[378719312,1754989859922,-460.0,0.00019367,2]
[378719314,1754989859931,-460.0,0.00019367,2]
[378719316,1754989859940,-468.08749392,0.00019367,2]
[378719318,1754989859950,-1053.87,0.00019367,2]
[378719320,1754989859959,-679.08,0.00019367,2]
[378719322,1754989859968,-460.0,0.00019367,2]
[378719324,1754989859977,-1390.83,0.00019367,2]
[378719326,1754989859986,-466.54,0.00019367,2]
[378719328,1754989859995,-460.0,0.00019367,2]
[378719330,1754989860005,-698.56,0.00019367,2]
[378719332,1754989860014,-460.0,0.00019367,2]
[378719334,1754989860024,-460.0,0.00019367,2]
[378719336,1754989860034,-460.0,0.00019367,2]
[378719338,1754989860044,-600.61,0.00019367,2]
[378719340,1754989860053,-460.0,0.00019367,2]
[378719342,1754989860063,-688.97,0.00019367,2]
[378719344,1754989860073,-1382.57,0.00019367,2]
[378719346,1754989860083,-1743.77,0.00019367,2]
[378719348,1754989860093,-9176.97,0.00019367,2]
[378719350,1754989860103,-460.0,0.00019367,2]
[378719352,1754989860113,-460.0,0.00019367,2]
[378719354,1754989860123,-880.3,0.00019367,2]
[378719356,1754989860132,-2946.27,0.00019367,2]
[378719358,1754989860142,-460.0,0.00019367,2]
[378719360,1754989860151,-598.93,0.00019367,2]
[378719362,1754989860161,-460.0,0.00019367,2]
[378719364,1754989860170,-460.0,0.00019367,2]
[378719366,1754989860180,-460.0,0.00019367,2]
[378719368,1754989860189,-460.0,0.00019367,2]
[378719370,1754989860199,-460.0,0.00019367,2]
[378719373,1754989860209,-514.92560196,0.00019367,2]
[378719375,1754989860220,-4712.31,0.00019367,2]
[378719377,1754989860229,-2191.98,0.00019367,2]
[378719379,1754989860239,-460.0,0.00019367,2]
[378719381,1754989860249,-460.0,0.00019367,2]
[378719383,1754989860258,-460.0,0.00019367,2]
[378719385,1754989860269,-826.58,0.00019367,2]
[378719387,1754989860279,-483.08196494,0.00019367,2]
[378719389,1754989860288,-590.73,0.00019367,2]
[378719391,1754989860298,-460.0,0.00019367,2]
[378719393,1754989860307,-470.18627361,0.00019367,2]
[378719395,1754989860316,-460.0,0.00019367,2]
[378719397,1754989860325,-722.38,0.00019367,2]
[378719399,1754989860334,-771.5,0.00019367,2]
[378719401,1754989860344,-340.44392398,0.00019367,2]
[378719403,1754989860353,-1280.88,0.00019367,2]
[378719405,1754989860363,-460.0,0.00019367,2]
[378719407,1754989860372,-460.0,0.00019367,2]
[378719409,1754989860381,-460.0,0.00019367,2]
[378719411,1754989860390,-9833.1544657,0.00019369,2]
[378719412,1754989860400,-500.0,0.00019373,2]
[378719414,1754989860409,-500.45548213,0.00019373,2]
[378719416,1754989860419,-501.58141767,0.00019373,2]
[378719418,1754989860428,-500.0,0.00019373,2]
[378719420,1754989860437,-154.46246951,0.00019373,2]
[378719422,1754989860446,-500.0,0.00019373,2]
[378719424,1754989860455,-500.0,0.00019373,2]
[378719426,1754989860465,-500.0,0.00019373,2]
[378719428,1754989860475,-500.0,0.00019373,2]
[378719430,1754989860484,-386.53779884,0.00019373,2]
[378719432,1754989860494,-3000.0,0.00019388,2]
[378719434,1754989860504,-151.0,0.000194,2]
[378719436,1754989860513,-151.0,0.000194,2]
[378719438,1754989860524,-151.0,0.000194,2]
[378719440,1754989860534,-667.0,0.00019416,2]
[378719442,1754989860543,-3080.0,0.00019428,2]
[378719444,1754989860553,-811.0,0.00019438,2]
[378719446,1754989860563,-394.0,0.00019444,2]
[378719448,1754989860573,-353.7,0.00019451,2]
[378719451,1754989860583,-151.0,0.00019452,2]
[378719452,1754989860593,-151.0,0.00019452,2]
[378719454,1754989860603,-576.0,0.00019465,2]
[378719456,1754989860612,-2095.32,0.00019465,2]
[378719458,1754989860622,-1918.85,0.00019465,2]
[378719460,1754989860631,-2635.68,0.00019465,2]
[378719462,1754989860641,-1506.4,0.00019465,2]
[378719464,1754989860650,-483.21449003,0.00019465,2]
[378719466,1754989860660,-1237.41,0.00019465,2]
[378719468,1754989860670,-460.0,0.00019465,2]
[378719470,1754989860680,-3087.66,0.00019465,2]
[378719473,1754989860693,-460.0,0.00019465,2]
[378719474,1754989860702,-3102.53,0.00019465,2]
[378719477,1754989860712,-460.0,0.00019465,2]
[378719479,1754989860722,-460.0,0.00019466,2]
[378719481,1754989860733,-482.95329193,0.00019466,2]
[378719483,1754989860743,-489.60462899,0.00019466,2]
[378719485,1754989860752,-1285.31,0.00019466,2]
[378719487,1754989860763,-1061.43,0.00019466,2]
[378719488,1754989860773,-660.19,0.00019466,2]
[378719491,1754989860784,-703.67,0.00019466,2]
[378719493,1754989860793,-1571.34,0.00019466,2]
[378719495,1754989860803,-479.36,0.00019466,2]
[378719497,1754989860812,-460.0,0.00019466,2]
[378719499,1754989860822,-460.0,0.00019466,2]
[378719501,1754989860832,-460.0,0.00019466,2]
[378719503,1754989860841,-961.98,0.00019466,2]
[378719505,1754989860856,-460.0,0.00019466,2]
[378719507,1754989860866,-460.0,0.00019466,2]
[378719509,1754989860875,-596.7,0.00019466,2]
[378719511,1754989860885,-548.06,0.00019466,2]
[378719513,1754989860894,-851.89,0.00019466,2]
[378719515,1754989860904,-460.0,0.00019466,2]
[378719517,1754989860913,-460.0,0.00019466,2]
[378719519,1754989860922,-460.0,0.00019466,2]
[378719521,1754989860932,-703.0,0.00019466,2]
[378719523,1754989860941,-304.52140655,0.00019466,2]
[378719525,1754989860951,-460.0,0.00019466,2]
[378719527,1754989860960,-534.6,0.00019466,2]
[378719529,1754989860969,-1574.67,0.00019466,2]
[378719531,1754989860979,-460.0,0.00019466,2]
[378719533,1754989860989,-651.47,0.00019466,2]
[378719535,1754989860997,-364.24406746,0.00019466,2]
[378719537,1754989861007,-460.0,0.00019466,2]
[378719539,1754989861016,-3457.047158,0.00019466,2]
[378719541,1754989861027,-3457.047168,0.00019466,2]
[378719543,1754989861036,-460.0,0.00019466,2]
[378719545,1754989861047,-460.0,0.00019466,2]
[378719546,1754989861056,-2172.38,0.00019466,2]
[378719549,1754989861067,-460.0,0.00019466,2]
[378719551,1754989861076,-460.0,0.00019466,2]
[378719553,1754989861085,-460.0,0.00019466,2]
[378719555,1754989861095,-460.0,0.00019466,2]
[378719557,1754989861104,-460.0,0.00019466,2]
[378719559,1754989861114,-460.0,0.00019466,2]
[378719560,1754989861123,-460.0,0.00019466,2]
[378719562,1754989861132,-460.0,0.00019466,2]
[378719564,1754989861141,-460.0,0.00019466,2]
[378719566,1754989861150,-460.0,0.00019466,2]
[378719568,1754989861159,-460.0,0.00019466,2]
[378719570,1754989861168,-460.0,0.00019466,2]
[378719572,1754989861178,-460.0,0.00019466,2]
[378719574,1754989861186,-466.24608621,0.00019466,2]
[378719577,1754989861196,-460.0,0.00019468,2]
[378719579,1754989861206,-460.0,0.00019468,2]
[378719581,1754989861215,-460.0,0.00019468,2]
[378719583,1754989861224,-460.0,0.00019468,2]
[378719584,1754989861233,-312.73255172,0.00019468,2]
[378719586,1754989861242,-268.63,0.00019468,2]
[378719588,1754989861252,-605.38097869,0.00019468,2]
[378719590,1754989861261,-460.0,0.00019468,2]
[378719592,1754989861271,-519.91,0.00019468,2]
[378719594,1754989861280,-536.22,0.00019468,2]
[378719596,1754989861289,-460.0,0.00019468,2]
[378719598,1754989861299,-460.0,0.00019468,2]
[378719600,1754989861308,-460.0,0.00019468,2]
[378719602,1754989861318,-480.88308863,0.00019468,2]
[378719604,1754989861327,-460.0,0.00019468,2]
[378719606,1754989861336,-460.0,0.00019468,2]
[378719608,1754989861346,-460.0,0.00019468,2]
[378719611,1754989861356,-460.0,0.00019468,2]
[378719612,1754989861366,-460.0,0.00019468,2]
[378719614,1754989861374,-460.0,0.00019468,2]
[378719616,1754989861384,-460.0,0.00019468,2]
[378719618,1754989861394,-460.0,0.00019468,2]
[378719620,1754989861402,-460.0,0.00019468,2]
[378719622,1754989861411,-460.0,0.00019468,2]
[378719624,1754989861420,-500.0,0.00019468,2]
[378719626,1754989861429,-460.0,0.00019468,2]
[378719628,1754989861439,-460.0,0.00019468,2]
[378719630,1754989861448,-371.6452701,0.00019468,2]
[378719632,1754989861457,-460.0,0.00019468,2]
[378719634,1754989861466,-460.0,0.00019468,2]
[378719636,1754989861476,-460.0,0.00019468,2]
[378719639,1754989861486,-195.1987518,0.00019468,2]
[378719641,1754989861495,-463.37171853,0.00019468,2]
[378719643,1754989861504,-460.0,0.00019468,2]
[378719645,1754989861514,-460.0,0.00019468,2]
[378719646,1754989861523,-460.0,0.00019468,2]
[378719648,1754989861532,-460.0,0.00019468,2]
[378719650,1754989861542,-460.0,0.00019468,2]
[378719653,1754989861551,-460.0,0.00019468,2]
[378719655,1754989861561,-550.0,0.00019468,2]
[378719657,1754989861570,-460.0,0.00019468,2]
[378719659,1754989861579,-460.0,0.00019468,2]
[378719660,1754989861588,-515.1,0.00019468,2]
[378719662,1754989861598,-460.0,0.00019468,2]
[378719664,1754989861607,-1117.38,0.00019468,2]
[378719667,1754989861617,-460.0,0.00019468,2]
[378719669,1754989861628,-464.32070822,0.00019468,2]
[378719671,1754989861638,-460.0,0.00019468,2]
[378719673,1754989861647,-460.0,0.00019468,2]
[378719675,1754989861657,-460.0,0.00019468,2]
[378719677,1754989861667,-460.0,0.00019468,2]
[378719679,1754989861677,-460.0,0.00019468,2]
[378719680,1754989861691,-837.98,0.00019468,2]
[378719681,1754989861700,-460.0,0.00019468,2]
[378719682,1754989861709,-460.0,0.00019468,2]
[378719683,1754989861719,-460.0,0.00019468,2]
[378719684,1754989861729,-460.0,0.00019468,2]
[378719685,1754989861739,-460.0,0.00019468,2]
[378719686,1754989861748,-500.96886751,0.00019473,2]
[378719687,1754989861759,-500.0,0.00019473,2]
[378719688,1754989861768,-500.0,0.00019473,2]
[378719689,1754989861778,-433.30891369,0.00019473,2]
[378719690,1754989861788,-500.0,0.00019473,2]
[378719691,1754989861797,-500.745957,0.00019473,2]
[378719693,1754989861806,-500.0,0.00019473,2]
[378719695,1754989861815,-500.39865225,0.00019473,2]
[378719697,1754989861824,-571.59741253,0.00019473,2]
[378719699,1754989861835,-500.0,0.00019473,2]
[378719701,1754989861846,-500.0,0.00019473,2]
[378719703,1754989861856,-500.0,0.00019473,2]
[378719705,1754989861866,-151.0,0.00019479,2]
[378719707,1754989861875,-500.0,0.00019479,2]
[378719709,1754989861885,-151.0,0.00019479,2]
[378719711,1754989861895,-500.0,0.00019479,2]
[378719713,1754989861905,-153.67592904,0.00019479,2]
[378719715,1754989861915,-266.36787368,0.00019479,2]
[378719717,1754989861925,-3056.0,0.00019479,2]
[378719719,1754989861934,-151.0,0.00019479,2]
[378719721,1754989861944,-199.00196442,0.00019479,2]
[378719723,1754989861954,-500.0,0.00019479,2]
[378719725,1754989861964,-504.22857125,0.00019479,2]
[378719727,1754989861973,-277.0284541,0.00019479,2]